bitfinex/quotes_SOLUSD_20250414
["timestamp","ask_amount","ask_price","bid_price","bid_amount"]
[1744629381882,8.42,133.18,133.14,26.10750796]
[1744629382380,20.19360796,133.21,133.15,18.53370796]
[1744629382690,18.53370796,133.2,133.15,18.53370796]
[1744629383293,18.53370796,133.2,133.14,7.5738]
[1744629383901,26.04130796,133.2,133.15,18.53370796]
[1744629385693,7.5081,133.19,133.14,26.10750796]
[1744629385898,7.5077,133.2,133.14,26.10750796]
[1744629386090,18.53370796,133.19,133.14,26.10750796]
[1744629386593,18.53370796,133.19,133.14,7.5738]
[1744629386789,18.53370796,133.19,133.14,26.10750796]
[1744629387096,26.04140796,133.2,133.15,18.53370796]
[1744629387795,18.53370796,133.18,133.14,7.5738]
[1744629388096,18.53370796,133.19,133.14,26.10750796]
[1744629388416,7.5077,133.2,133.15,18.53370796]
[1744629388700,26.04140796,133.2,133.15,18.53370796]
[1744629389011,1.6599,133.21,133.15,18.53370796]
[1744629389292,15.9265,133.22,133.18,18.53370796]
[1744629389499,34.46020796,133.22,133.16,0.28432314]
[1744629389687,18.53370796,133.21,133.16,18.53370796]
[1744629389876,15.9265,133.22,133.16,18.53370796]
[1744629390072,34.46020796,133.22,133.17,7.509]
[1744629390495,18.53370796,133.21,133.17,7.509]
[1744629390803,18.53370796,133.21,133.16,26.04310796]
[1744629391202,18.53370796,133.21,133.16,7.5094]
[1744629391399,18.53370796,133.19,133.14,18.59670796]
[1744629391591,18.53370796,133.16,133.14,0.063]
[1744629391994,81.71706478,133.15,133.14,0.063]
[1744629392203,0.28432314,133.14,133.08,0.03]
[1744629392376,52.57042314,133.15,133.08,0.03]
[1744629392704,18.53370796,133.14,133.08,0.03]
[1744629392896,18.53370796,133.11,133.08,0.03]
[1744629393202,18.53370796,133.09,133.08,0.03]
[1744629393410,26.0,133.11,133.08,0.03]
[1744629393705,44.53370796,133.11,133.08,0.03]
[1744629394003,18.53370796,133.1,133.08,0.03]
[1744629394188,18.53370796,133.09,133.08,0.03]
[1744629395204,26.04700796,133.1,133.08,0.03]
[1744629395905,18.53370796,133.09,133.08,0.03]
[1744629396406,26.04700796,133.1,133.08,0.03]
[1744629396604,44.53370796,133.11,133.08,0.03]
[1744629396785,7.5123,133.12,133.08,0.03]
[1744629396984,18.53370796,133.14,133.09,18.53370796]
[1744629398202,7.5114,133.13,133.09,18.53370796]
[1744629398899,26.04480796,133.14,133.09,26.04740796]
[1744629399916,18.53370796,133.14,133.09,26.04740796]
[1744629400215,26.04450796,133.14,133.09,26.04740796]
[1744629400425,26.04450796,133.14,133.09,7.5137]
[1744629400597,26.04450796,133.14,133.09,26.04740796]
[1744629400794,26.04450796,133.14,133.09,7.5137]
[1744629400999,18.53370796,133.13,133.08,18.56370796]
[1744629402131,18.53370796,133.11,133.08,0.03]
[1744629402421,26.04650796,133.11,133.08,0.03]
[1744629403606,7.5128,133.11,133.08,0.03]
[1744629403819,7.5103,133.15,133.08,0.03]
[1744629403998,18.53370796,133.13,133.08,18.56370796]
[1744629404498,26.04560796,133.13,133.08,18.56370796]
[1744629405119,7.5119,133.13,133.08,18.56370796]
[1744629405325,18.53370796,133.12,133.08,0.03]
[1744629406614,26.2861,133.15,133.08,18.56370796]
[1744629406817,18.53370796,133.13,133.08,0.03]
[1744629407319,18.53370796,133.13,133.08,18.56370796]
[1744629407521,26.2861,133.15,133.08,18.56370796]
[1744629407720,18.53370796,133.13,133.08,18.56370796]
[1744629407918,18.53370796,133.14,133.09,18.53370796]
[1744629408302,18.53370796,133.14,133.08,26.07780796]
[1744629408508,18.53370796,133.13,133.08,26.07780796]
[1744629408910,18.53370796,133.1,133.08,0.03]
[1744629409111,18.53370796,133.09,133.08,0.03]
[1744629410201,26.04740796,133.09,133.08,0.03]
[1744629412104,7.5137,133.09,133.08,0.03]
[1744629412295,26.04740796,133.09,133.08,0.03]
[1744629413023,63.23076478,133.09,133.08,0.03]
[1744629413407,44.69705682,133.09,133.08,0.03]
[1744629415020,7.5137,133.09,133.08,0.03]
[1744629415219,26.04740796,133.09,133.08,0.03]
[1744629416325,45.12354153,133.09,133.08,0.03]
[1744629416526,63.65724949,133.09,133.08,0.03]
[1744629416726,26.0,133.06,133.04,0.03]
[1744629416916,26.04960796,133.05,133.04,0.03]
[1744629417311,7.5159,133.05,133.04,0.03]
[1744629417517,26.04960796,133.05,133.04,0.03]
[1744629421432,37.32050796,133.08,133.04,0.03]
[1744629421433,18.53370796,133.08,133.04,0.03]
[1744629421730,7.5137,133.09,133.04,18.56370796]
[1744629421919,8.42,133.1,133.06,18.53370796]
[1744629422311,8.42,133.1,133.07,18.53370796]
[1744629422727,8.42,133.1,133.07,26.04850796]
[1744629422924,7.5121,133.12,133.08,18.53370796]
[1744629423625,18.53370796,133.1,133.06,82.6]
[1744629423832,18.53370796,133.09,133.04,20.12030796]
[1744629424148,18.53370796,133.08,133.04,20.12030796]
[1744629424356,18.53370796,133.06,133.04,0.03]
[1744629424528,18.53370796,133.05,133.04,0.03]
[1744629424728,26.04960796,133.05,133.04,0.03]
[1744629425340,26.0,133.05,133.04,0.03]
[1744629425523,44.53370796,133.05,133.04,0.03]
[1744629425732,26.0,133.05,133.04,0.03]
[1744629425918,44.53370796,133.05,133.04,0.03]
[1744629426563,26.04860796,133.07,133.04,0.03]
[1744629427220,18.53370796,133.06,133.04,0.03]
[1744629427846,26.04920796,133.06,133.04,0.03]
[1744629428019,26.95370796,133.08,133.04,0.03]
[1744629428220,8.42,133.08,133.04,18.56370796]
[1744629428421,8.42,133.08,133.05,18.53370796]
[1744629428637,8.42,133.08,133.04,0.03]
[1744629429046,34.46800796,133.08,133.04,0.03]
[1744629429341,18.53370796,133.07,133.04,0.03]
[1744629429843,26.04910796,133.06,133.04,0.03]
[1744629430752,8.42,133.08,133.04,0.03]
[1744629431255,26.95370796,133.08,133.04,0.03]
[1744629431845,34.46810796,133.08,133.04,0.03]
[1744629432353,8.42,133.08,133.05,18.53370796]
[1744629432537,8.42,133.08,133.04,101.16370796]
[1744629433137,15.9343,133.08,133.04,101.16370796]
[1744629433338,34.46800796,133.08,133.04,82.63]
[1744629435158,15.9343,133.08,133.04,108.68010796]
[1744629435639,8.42,133.08,133.04,108.68010796]
[1744629436054,15.9344,133.08,133.04,108.68010796]
[1744629436259,34.46810796,133.08,133.04,82.63]
[1744629437266,34.46810796,133.08,133.04,7.5464]
[1744629437574,34.46810796,133.08,133.04,0.03]
[1744629437861,34.46810796,133.08,133.04,7.5465]
[1744629438357,34.46810796,133.08,133.04,0.03]
[1744629438541,15.9344,133.08,133.04,0.03]
[1744629438741,26.95370796,133.08,133.04,0.03]
[1744629438950,242.84,133.15,133.07,18.53370796]
[1744629439271,18.53370796,133.12,133.07,101.13370796]
[1744629439468,18.53370796,133.11,133.06,7.5154]
[1744629439842,18.53370796,133.12,133.07,18.53370796]
[1744629440038,18.64964886,133.13,133.06,7.5154]
[1744629440039,18.53370796,133.11,133.06,26.04910796]
[1744629440244,18.64964886,133.13,133.05,90.2658]
[1744629440245,18.53370796,133.09,133.05,90.2658]
[1744629440460,18.53370796,133.09,133.05,1.5402]
[1744629440838,7.5154,133.06,133.04,0.03]
[1744629441151,18.53370796,133.05,133.04,0.03]
[1744629441951,37.18335682,133.05,133.04,0.03]
[1744629442652,18.53370796,133.05,133.04,0.03]
[1744629443054,26.04960796,133.05,133.04,0.03]
[1744629444655,44.69925682,133.05,133.04,0.03]
[1744629446146,45.12574153,133.05,133.04,0.03]
[1744629446543,45.12574153,133.05,133.04,0.0001]
[1744629447349,18.64964886,133.04,133.03,0.0001]
[1744629447556,18.64964886,133.04,133.01,0.03]
[1744629447557,44.79181043,133.02,133.01,0.03]
[1744629447758,18.64964886,133.01,133.0,0.03]
[1744629447966,26.42648471,132.99,132.96,0.03]
[1744629448157,63.18335682,132.99,132.96,0.03]
[1744629448857,70.70265682,132.99,132.96,0.03]
[1744629449362,52.05300796,132.99,132.96,0.03]
[1744629449767,70.70265682,132.99,132.96,0.03]
[1744629450076,44.70265682,132.99,132.96,0.03]
[1744629450770,26.05260796,133.0,132.96,0.03]
[1744629450963,8.42,133.02,132.97,18.56370796]
[1744629451162,8.42,133.02,132.99,18.53370796]
[1744629451752,8.42,133.02,132.98,18.56370796]
[1744629452848,3.91564198,133.08,133.01,18.53370796]
[1744629453047,26.04790796,133.08,133.03,18.53370796]
[1744629453778,18.53370796,133.07,133.02,18.53370796]
[1744629454270,26.04900796,133.07,133.02,26.05110796]
[1744629454961,7.5153,133.07,133.02,7.5174]
[1744629455164,7.5153,133.07,133.02,18.53370796]
[1744629455474,8.42,133.09,133.02,90.1176]
[1744629455475,18.53370796,133.08,133.02,90.1176]
[1744629455777,18.53370796,133.06,133.02,82.6]
[1744629456075,18.53370796,133.05,133.01,7.518]
[1744629456477,18.53370796,133.04,132.99,90.1191]
[1744629456666,18.53370796,133.02,132.99,82.6]
[1744629456859,18.53370796,133.03,132.99,7.5192]
[1744629457263,18.53370796,133.02,132.98,7.5498]
[1744629457473,18.53370796,133.03,132.98,26.08350796]
[1744629458387,26.05080796,133.03,132.98,26.08350796]
[1744629458680,18.53370796,133.02,132.98,0.03]
[1744629458857,18.53370796,133.02,132.98,7.5497]
[1744629459582,8.42,133.03,132.98,26.08340796]
[1744629459769,26.95370796,133.03,132.98,26.08340796]
[1744629460252,26.95370796,133.03,133.0,18.53370796]
[1744629460253,8.42,133.03,133.0,18.53370796]
[1744629460455,26.95370796,133.07,133.01,18.53370796]
[1744629460655,238.41433556,133.12,133.06,18.53370796]
[1744629460886,234.5,133.12,133.08,18.53370796]
[1744629461063,26.95370796,133.13,133.08,18.53370796]
[1744629461398,15.9316,133.13,133.08,18.53370796]
[1744629461609,18.53370796,133.12,133.07,18.53370796]
[1744629461769,15.9316,133.13,133.06,18.53370796]
[1744629462090,34.46530796,133.13,133.08,18.53370796]
[1744629462277,15.9316,133.13,133.08,26.04790796]
[1744629462469,34.46530796,133.13,133.08,26.04790796]
[1744629463495,8.42,133.13,133.1,18.53370796]
[1744629463697,8.42,133.13,133.11,18.53370796]
[1744629463875,0.063,133.14,133.11,18.53370796]
[1744629464265,0.063,133.14,133.11,18.96019267]
[1744629464498,0.063,133.14,133.11,18.53370796]
[1744629464804,0.063,133.14,133.13,18.53370796]
[1744629465601,0.063,133.14,133.13,26.04510796]
[1744629468099,0.063,133.14,133.13,26.47159267]
[1744629468301,0.063,133.14,133.12,18.67586953]
[1744629468988,0.063,133.14,133.11,26.04620796]
[1744629469595,0.063,133.14,133.11,108.64620796]
[1744629471898,0.063,133.14,133.11,101.13370796]
[1744629472282,0.063,133.14,133.12,18.53370796]
[1744629472485,0.063,133.14,133.13,18.53370796]
[1744629472683,0.063,133.14,133.1,7.5129]
[1744629472883,0.063,133.14,133.11,18.53370796]
[1744629474906,0.063,133.14,133.11,26.04620796]
[1744629475207,0.063,133.14,133.11,18.53370796]
[1744629475385,0.063,133.14,133.11,7.5125]
[1744629475585,0.063,133.14,133.11,26.04620796]
[1744629475781,0.063,133.14,133.13,18.67586953]
[1744629476013,0.063,133.14,133.13,138.74354949]
[1744629476319,0.063,133.16,133.14,19.07613357]
[1744629476607,0.063,133.16,133.15,20.12520796]
[1744629477891,0.063,133.16,133.15,27.63550796]
[1744629478286,0.063,133.16,133.15,28.06199267]
[1744629479411,0.063,133.2,133.16,101.67613357]
[1744629479592,0.063,133.2,133.19,18.53370796]
[1744629479792,0.063,133.2,133.19,101.13370796]
[1744629480308,0.063,133.2,133.19,101.56019267]
[1744629480613,0.063,133.2,133.19,138.74354949]
[1744629480782,0.063,133.22,133.2,19.07613357]
[1744629480988,0.063,133.22,133.21,37.60984153]
[1744629481187,0.063,133.22,133.21,18.96019267]
[1744629481590,0.063,133.22,133.2,82.6]
[1744629484811,0.063,133.22,133.21,18.8180311]
[1744629485010,0.063,133.26,133.23,101.407972]
[1744629485209,0.063,133.26,133.25,56.14354949]
[1744629485514,0.063,133.26,133.25,18.96019267]
[1744629485716,0.063,133.26,133.25,56.14354949]
[1744629486308,0.0001,133.26,133.25,63.64814949]
[1744629486490,0.063,133.27,133.26,0.28432314]
[1744629486685,0.063,133.28,133.27,19.07613357]
[1744629486898,0.063,133.29,133.28,26.80249267]
[1744629487906,0.063,133.29,133.28,127.92614153]
[1744629488305,0.063,133.35,133.31,44.79181043]
[1744629488502,11.2801725,133.45,133.38,26.0]
[1744629488708,7.4923,133.47,133.39,19.07613357]
[1744629489012,7.4923,133.47,133.37,26.0]
[1744629489198,18.53370796,133.44,133.38,0.28432314]
[1744629489403,7.4923,133.47,133.38,0.42648471]
[1744629489912,18.53370796,133.45,133.4,18.53370796]
[1744629490093,9.16,133.45,133.36,0.14216157]
[1744629490292,9.16,133.45,133.36,26.57443357]
[1744629490516,7.4928,133.46,133.4,18.53370796]
[1744629490721,7.4928,133.46,133.41,18.53370796]
[1744629491011,7.4928,133.46,133.39,0.42648471]
[1744629491206,7.4928,133.46,133.41,18.53370796]
[1744629491518,26.02650796,133.46,133.41,18.53370796]
[1744629491689,26.02650796,133.46,133.39,0.42648471]
[1744629491892,18.53370796,133.44,133.37,0.42648471]
[1744629492195,7.4928,133.46,133.39,19.07613357]
[1744629492394,7.4928,133.46,133.41,18.53370796]
[1744629492596,18.53370796,133.43,133.36,0.14216157]
[1744629492802,26.225,133.46,133.4,18.53370796]
[1744629493003,18.53370796,133.44,133.39,18.53370796]
[1744629493206,18.53370796,133.43,133.38,18.53370796]
[1744629493392,26.225,133.46,133.38,18.53370796]
[1744629493712,7.4951,133.42,133.38,18.53370796]
[1744629494611,26.02880796,133.42,133.37,18.53370796]
[1744629494797,7.4951,133.42,133.38,18.53370796]
[1744629495106,18.7322,133.46,133.39,18.53370796]
[1744629495306,18.53370796,133.45,133.4,18.53370796]
[1744629495513,7.4928,133.46,133.4,18.53370796]
[1744629495818,26.0,133.46,133.41,18.53370796]
[1744629495997,14.0812,133.49,133.44,18.53370796]
[1744629496312,18.56370796,133.48,133.4,82.90048471]
[1744629496697,18.53370796,133.47,133.42,18.53370796]
[1744629497223,18.56370796,133.48,133.43,18.53370796]
[1744629497520,0.03,133.48,133.42,18.53370796]
[1744629497703,18.56370796,133.48,133.43,18.53370796]
[1744629497894,0.03,133.48,133.45,18.53370796]
[1744629498314,0.03,133.48,133.43,0.42648471]
[1744629498519,18.53370796,133.46,133.41,7.4956]
[1744629498703,18.53370796,133.47,133.42,18.53370796]
[1744629498903,18.56370796,133.48,133.43,18.53370796]
[1744629499128,0.03,133.48,133.44,18.96019267]
[1744629499418,0.03,133.48,133.44,18.53370796]
[1744629499598,18.56370796,133.48,133.43,18.53370796]
[1744629499914,18.53370796,133.47,133.42,18.53370796]
[1744629500116,18.53370796,133.47,133.37,9.56]
[1744629500117,18.53370796,133.43,133.38,26.03100796]
[1744629500319,18.53370796,133.43,133.38,0.14216157]
[1744629500495,18.53370796,133.42,133.37,18.53370796]
[1744629500895,18.53370796,133.42,133.37,26.03140796]
[1744629501103,18.53370796,133.4,133.35,82.474]
[1744629501316,18.53370796,133.39,133.34,0.14216157]
[1744629501637,18.53370796,133.39,133.34,26.03330796]
[1744629501923,26.03060796,133.39,133.34,18.53370796]
[1744629502119,18.53370796,133.35,133.29,7.5022]
[1744629502323,18.53370796,133.32,133.27,18.53370796]
[1744629502538,1.6329,133.37,133.27,18.53370796]
[1744629502539,18.64964886,133.36,133.28,1.52]
[1744629502832,18.53370796,133.3,133.28,1.52]
[1744629503198,18.53370796,133.29,133.28,1.52]
[1744629503415,44.53370796,133.31,133.28,1.52]
[1744629503617,44.53370796,133.31,133.24,0.14216157]
[1744629503618,18.53370796,133.3,133.25,18.53370796]
[1744629503819,18.53370796,133.28,133.21,7.5069]
[1744629504134,18.53370796,133.26,133.22,0.14216157]
[1744629504326,7.5001,133.33,133.25,37.32551839]
[1744629504499,18.53370796,133.33,133.28,18.53370796]
[1744629505016,18.53370796,133.31,133.26,18.67586953]
[1744629505321,18.53370796,133.33,133.28,18.53370796]
[1744629505736,18.53370796,133.33,133.28,26.03650796]
[1744629506135,6.1302,133.34,133.28,26.03650796]
[1744629506330,9.56,133.36,133.3,18.53370796]
[1744629506643,18.53370796,133.34,133.29,18.53370796]
[1744629507130,18.53370796,133.32,133.27,7.5033]
[1744629507330,18.53370796,133.33,133.27,7.5033]
[1744629507531,18.53370796,133.33,133.28,18.53370796]
[1744629507731,7.5001,133.33,133.27,7.5033]
[1744629508036,26.03380796,133.33,133.28,18.53370796]
[1744629508923,18.53370796,133.32,133.27,18.53370796]
[1744629509151,18.53370796,133.3,133.25,18.53370796]
[1744629509346,18.53370796,133.31,133.26,18.53370796]
[1744629509533,7.5001,133.33,133.27,18.53370796]
[1744629509726,7.4996,133.34,133.27,18.53370796]
[1744629509931,7.4996,133.34,133.28,18.53370796]
[1744629510132,18.53370796,133.33,133.28,18.53370796]
[1744629510328,18.53370796,133.33,133.27,7.5033]
[1744629510545,18.53370796,133.31,133.27,7.5033]
[1744629510851,18.53370796,133.32,133.27,26.03700796]
[1744629511044,52.03420796,133.33,133.28,18.53370796]
[1744629511245,18.53370796,133.34,133.29,18.53370796]
[1744629511427,35.59250796,133.36,133.31,18.53370796]
[1744629511938,18.53370796,133.34,133.29,101.00770796]
[1744629512250,18.53370796,133.33,133.29,82.474]
[1744629512631,18.53370796,133.31,133.26,26.03770796]
[1744629512939,18.53370796,133.3,133.25,7.5044]
[1744629513148,26.03560796,133.3,133.25,26.03810796]
[1744629513328,26.03510796,133.31,133.26,18.53370796]
[1744629513852,18.53370796,133.3,133.24,89.9791]
[1744629514049,18.53370796,133.3,133.25,18.53370796]
[1744629514263,7.5009,133.32,133.27,18.53370796]
[1744629514435,26.03460796,133.32,133.27,18.53370796]
[1744629514638,18.53370796,133.3,133.24,89.9791]
[1744629514831,18.53370796,133.25,133.24,82.474]
[1744629515028,18.53370796,133.25,133.2,108.72006953]
[1744629515346,26.03850796,133.25,133.2,108.72006953]
[1744629515544,1.6048,133.29,133.22,18.53370796]
[1744629515749,18.53370796,133.28,133.23,18.53370796]
[1744629515931,20.13850796,133.29,133.24,18.53370796]
[1744629516126,26.03620796,133.29,133.24,18.53370796]
[1744629516339,18.53370796,133.28,133.23,18.96019267]
[1744629517053,26.03620796,133.29,133.24,18.53370796]
[1744629517245,16.3146,133.3,133.25,18.53370796]
[1744629517432,9.9,133.3,133.27,18.53370796]
[1744629517632,26.03490796,133.32,133.27,18.53370796]
[1744629518145,18.53370796,133.33,133.27,82.474]
[1744629518347,18.53370796,133.32,133.28,18.53370796]
[1744629518550,13.8619,133.34,133.28,18.53370796]
[1744629518759,18.53370796,133.32,133.28,18.53370796]
[1744629519135,7.5004,133.33,133.28,26.03670796]
[1744629519327,24.89570796,133.34,133.29,18.53370796]
[1744629519531,9.9,133.35,133.32,18.53370796]
[1744629519833,7.498,133.37,133.33,18.53370796]
[1744629520038,7.4968,133.39,133.34,18.53370796]
[1744629520244,18.53370796,133.38,133.33,101.00770796]
[1744629524045,18.53370796,133.38,133.33,101.00770796]
[1744629524248,18.53370796,133.39,133.34,18.53370796]
[1744629524956,26.03090796,133.39,133.34,18.53370796]
[1744629525455,18.53370796,133.38,133.33,108.50730796]
[1744629525655,18.53370796,133.38,133.33,82.474]
[1744629525853,18.53370796,133.38,133.33,101.00770796]
[1744629526236,18.53370796,133.34,133.29,101.00770796]
[1744629526534,18.53370796,133.33,133.29,82.474]
[1744629526734,18.53370796,133.3,133.26,82.474]
[1744629526940,26.03670796,133.28,133.26,82.474]
[1744629527156,7.503,133.28,133.23,18.67586953]
[1744629527352,7.503,133.28,133.24,18.53370796]
[1744629528660,18.53370796,133.29,133.24,18.53370796]
[1744629528835,26.03620796,133.29,133.24,18.53370796]
[1744629530054,18.53370796,133.28,133.23,26.18146953]
[1744629530358,26.03710796,133.28,133.23,26.18146953]
[1744629530555,7.5034,133.28,133.24,18.53370796]
[1744629531058,7.5034,133.28,133.24,101.00770796]
[1744629531461,18.53370796,133.26,133.22,82.474]
[1744629531649,7.5034,133.28,133.22,89.9803]
[1744629531843,26.03710796,133.28,133.23,18.53370796]
[1744629532347,18.53370796,133.28,133.23,18.96019267]
[1744629533566,7.5035,133.27,133.23,18.96019267]
[1744629533870,7.5035,133.27,133.23,108.93999267]
[1744629534271,26.03690796,133.28,133.23,108.93999267]
[1744629534470,18.7544,133.31,133.23,90.40628471]
[1744629534766,18.53370796,133.3,133.24,18.53370796]
[1744629535344,26.03550796,133.3,133.24,18.53370796]
[1744629535573,18.53370796,133.29,133.24,26.03890796]
[1744629535764,26.03550796,133.3,133.24,26.03890796]
[1744629536073,18.53370796,133.29,133.24,26.03890796]
[1744629536270,32.6421,133.25,133.2,82.537]
[1744629536446,18.53370796,133.21,133.2,0.063]
[1744629536755,26.0,133.21,133.2,0.063]
[1744629536960,44.53370796,133.21,133.2,0.063]
[1744629538970,26.0,133.21,133.2,0.063]
[1744629539275,44.53370796,133.21,133.2,0.063]
[1744629539475,52.04060796,133.21,133.2,0.063]
[1744629540472,52.04060796,133.21,133.18,0.0001]
[1744629540473,18.64964886,133.19,133.18,0.0001]
[1744629540778,37.18335682,133.19,133.18,0.0001]
[1744629541278,18.53370796,133.19,133.18,0.0001]
[1744629541657,26.04170796,133.19,133.18,0.0001]
[1744629544668,7.508,133.19,133.18,0.0001]
[1744629545073,26.04170796,133.19,133.18,0.0001]
[1744629545573,26.04170796,133.19,133.17,0.0001]
[1744629545774,18.53370796,133.18,133.17,0.0001]
[1744629546169,7.5086,133.18,133.17,0.0001]
[1744629546376,26.04230796,133.18,133.17,0.0001]
[1744629547378,54.87195682,133.18,133.17,0.0001]
[1744629548486,26.0,133.15,133.14,0.0001]
[1744629548689,44.53370796,133.15,133.14,0.0001]
[1744629548884,26.0,133.15,133.14,0.0001]
[1744629549197,44.53370796,133.15,133.14,0.0001]
[1744629549663,63.06741592,133.15,133.14,0.0001]
[1744629549862,44.53370796,133.15,133.14,0.0001]
[1744629550495,33.5103,133.15,133.14,0.0001]
[1744629550702,52.04400796,133.15,133.14,0.0001]
[1744629550893,33.5103,133.15,133.14,0.0001]
[1744629551090,26.04340796,133.17,133.14,0.0001]
[1744629551302,18.53370796,133.15,133.14,0.0001]
[1744629552083,26.2826,133.17,133.14,0.0001]
[1744629552310,18.53370796,133.15,133.14,0.0001]
[1744629552607,26.04400796,133.15,133.14,0.0001]
[1744629553488,7.5103,133.15,133.14,0.0001]
[1744629553792,26.04350796,133.16,133.14,0.0001]
[1744629554501,18.53370796,133.15,133.14,0.0001]
[1744629554683,26.04400796,133.15,133.14,0.0001]
[1744629556204,52.04400796,133.15,133.14,0.0001]
[1744629556388,63.22736478,133.15,133.14,0.0001]
[1744629556795,63.65384949,133.15,133.14,0.0001]
[1744629558009,26.0,133.12,133.1,0.063]
[1744629558210,18.53370796,133.11,133.1,0.063]
[1744629559005,26.04620796,133.11,133.1,0.063]
[1744629560386,18.53370796,133.14,133.1,0.063]
[1744629560387,24.82020796,133.2,133.1,0.063]
[1744629560586,28.84964886,133.19,133.12,18.53370796]
[1744629560793,18.53370796,133.15,133.11,18.53370796]
[1744629561112,26.04400796,133.15,133.11,82.474]
[1744629561734,7.5103,133.15,133.11,82.474]
[1744629561886,26.04400796,133.15,133.11,82.474]
[1744629562607,26.0,133.11,133.1,0.063]
[1744629562807,26.0,133.1,133.09,0.063]
[1744629562986,52.04680796,133.1,133.09,0.063]
[1744629563411,33.5131,133.1,133.09,0.063]
[1744629563607,52.04680796,133.1,133.09,0.063]
[1744629565496,89.23016478,133.1,133.08,0.063]
[1744629565701,55.71706478,133.09,133.08,0.063]
[1744629566106,26.04740796,133.09,133.08,0.063]
[1744629566997,7.5137,133.09,133.08,0.063]
[1744629567197,26.04740796,133.09,133.08,0.063]
[1744629568093,44.69705682,133.09,133.08,0.063]
[1744629568296,26.0,133.07,133.06,0.063]
[1744629568619,44.53370796,133.07,133.06,0.063]
[1744629569321,52.04850796,133.07,133.06,0.063]
[1744629570419,33.5148,133.07,133.06,0.063]
[1744629570620,18.53370796,133.1,133.06,0.063]
[1744629570804,18.53370796,133.1,133.06,18.59670796]
[1744629571000,18.53370796,133.1,133.06,0.063]
[1744629571200,18.53370796,133.08,133.06,0.063]
[1744629571424,18.53370796,133.07,133.06,0.063]
[1744629571610,26.04830796,133.08,133.06,0.063]
[1744629574608,18.53370796,133.07,133.06,0.063]
[1744629576427,37.18335682,133.07,133.06,0.0001]
[1744629576607,44.69815682,133.07,133.06,0.0001]
[1744629580525,26.04850796,133.07,133.06,0.0001]
[1744629581021,44.69815682,133.07,133.06,0.0001]
[1744629582942,26.0,133.04,133.03,0.063]
[1744629583427,44.53370796,133.04,133.03,0.063]
[1744629584210,52.05020796,133.04,133.03,0.063]
[1744629591130,45.1212806,133.04,133.03,0.063]
[1744629591834,7.5165,133.04,133.03,0.063]
[1744629592035,19.1212806,133.04,133.03,0.063]
[1744629597023,10.4,133.05,133.03,0.063]
[1744629597223,10.06,133.11,133.05,2.06578471]
[1744629597531,11.6047806,133.1,133.05,13.67056531]
[1744629597737,11.6047806,133.09,133.05,1.6393]
[1744629597939,11.6047806,133.08,133.05,1.6393]
[1744629598138,17.5726,133.11,133.05,1.6393]
[1744629598338,11.6047806,133.08,133.05,1.6393]
[1744629598524,11.6047806,133.06,133.03,0.48948471]
[1744629598722,11.6047806,133.06,133.03,0.063]
[1744629599117,7.5131,133.1,133.04,12.03126531]
[1744629599321,11.6047806,133.08,133.03,19.1848806]
[1744629599522,11.6047806,133.07,133.03,7.5801]
[1744629599732,11.6047806,133.07,133.03,0.34732314]
[1744629599940,11.6047806,133.07,133.03,0.063]
[1744629600224,26.2959,133.1,133.03,0.063]
[1744629600225,11.6047806,133.05,133.03,0.063]
[1744629600429,11.6047806,133.08,133.03,0.063]
[1744629600630,11.6047806,133.06,133.03,0.063]
[1744629600831,11.6047806,133.05,133.03,0.063]
[1744629601035,11.6047806,133.04,133.03,0.063]
[1744629602827,41.85921006,133.04,133.03,0.0001]
[1744629603043,41.85921006,133.04,133.0,0.063]
[1744629603044,33.5182,133.01,133.0,0.063]
[1744629603227,52.09386902,133.01,133.0,0.063]
[1744629604347,70.74351788,133.01,133.0,0.063]
[1744629604557,18.64964886,133.0,132.98,0.03]
[1744629604750,28.31566902,132.99,132.98,0.03]
[1744629605129,54.48461788,132.99,132.98,0.03]
[1744629605544,54.62677945,132.99,132.98,0.03]
[1744629605750,37.15133804,132.97,132.96,0.03]